[Event "French-ch Youth U12 2022"]
[Site "Agen"]
[Date "2022.04.24"]
[Round "9.6"]
[White "Mence, Eline"]
[Black "Neel, Laura"]
[Result "0-1"]
[ECO "A45"]
[WhiteElo "1499"]
[BlackElo "1725"]
[Annotator "NA RC COMBH"]
[PlyCount "68"]
[EventDate "2022.04.17"]
[EventType "swiss"]
[EventCountry "FRA"]
[SourceTitle "playchess.com"]
[Source "ChessBase"]
[SourceQuality "1"]
[TimeControl "5400+30"]

1. d4 {[%emt 0:00:04]} Nf6 {[%emt 0:00:06]} 2. Bg5 {[%emt 0:00:09]} g6 {[%emt 0:00:14]} 3. Bxf6 {[%emt 0:00:21]} exf6 {[%emt 0:00:10]} 4. e3 {[%emt 0:00:25]} Bg7 {[%emt 0:00:05]} 5. g3 {[%emt 0:01:15]} f5 {[%emt 0:03:48]} 6. Bg2 {[%emt 0:01:13]} O-O {[%emt 0:01:40]} 7. Ne2 {[%emt 0:01:24]} Qe7 8. Nbc3 {[%emt 0:02:49]} c6 {[%emt 0:05:08]} 9. O-O {[%emt 0:01:26]} d5 {[%emt 0:00:41]} 10. Qd3 {[%emt 0:07:53]} Re8 {[%emt 0:04:49]} 11. Rfb1 {[%emt 0:05:24]} a5 {[%emt 0:06:18]} 12. Na4 {[%emt 0:26:03]} Nd7 {[%emt 0:05:36]} 13. c4 {[%emt 0:02:06]} dxc4 {[%emt 0:16:33]} 14. Qxc4 {[%emt 0:00:14]} Qb4 {[%emt 0:00:40]} 15. Qc2 {[%emt 0:02:33]} Nf6 16. a3 {[%emt 0:08:03]} Qb5 {[%emt 0:13:38]} 17. Nec3 {[%emt 0:00:58]} Qa6 {[%emt 0:00:16]} 18. Nc5 {[%emt 0:02:00]} Qb6 {[%emt 0:07:13]} 19. b4 {[%emt 0:08:54]} axb4 {[%emt 0:03:35]} 20. axb4 {[%emt 0:00:47]} Rxa1 {[%emt 0:01:45]} 21. Rxa1 {[%emt 0:00:12]} Qxb4 {[%emt 0:00:35]} 22. Rb1 {[%emt 0:00:46]} Qa5 {[%emt 0:06:30]} 23. Nxb7 {[%emt 0:01:07]} Bxb7 {[%emt 0:01:10]} 24. Rxb7 {[%emt 0:00:25]} Qa6 {[%emt 0:00:25]} 25. Qb3 {[%emt 0:02:43]} Rf8 {[%emt 0:04:13]} 26. Rb6 {[%emt 0:02:35]} Qd3 {[%emt 0:00:28]} 27. Bxc6 {[%emt 0:04:12]} Qd2 {[%emt 0:01:42]} 28. Bf3 {[%emt 0:03:56]} Qe1+ {[%emt 0:04:31]} 29. Kg2 {[%emt 0:00:18]} Ng4 {[%emt 0:00:09]} 30. Bxg4 {[%emt 0:01:34]} fxg4 {[%emt 0:00:06]} 31. Rb7 {[%emt 0:01:38]} h5 {[%emt 0:01:36]} 32. Ne4 {[%emt 0:03:57]} Qe2 {[%emt 0:02:33]} 33. Rxf7 {[%emt 0:02:39]} Rxf7 {[%emt 0:00:12]} 34. Ng5 {[%emt 0:00:17]} Qxf2+ {[%emt 0:00:12]} 0-1

[Event "French-ch Youth U12 2022"]
[Site "Agen"]
[Date "2022.04.24"]
[Round "9.7"]
[White "Maret, Anna"]
[Black "Castagnerol, Cerise"]
[Result "0-1"]
[ECO "C26"]
[WhiteElo "1328"]
[BlackElo "1312"]
[Annotator "NA RC COMBH"]
[PlyCount "106"]
[EventDate "2022.04.17"]
[EventType "swiss"]
[EventCountry "FRA"]
[SourceTitle "playchess.com"]
[Source "ChessBase"]
[SourceQuality "1"]
[TimeControl "5400+30"]

1. e4 {[%emt 0:00:00]} e5 {[%emt 0:00:00]} 2. Nc3 {[%emt 0:00:00]} Nf6 {[%emt 0:00:00]} 3. f4 {[%emt 0:00:00]} d6 {[%emt 0:00:15]} 4. Nf3 {[%emt 0:00:48]} Nc6 {[%emt 0:01:14]} 5. Bc4 {[%emt 0:00:40]} Be7 {[%emt 0:01:29]} 6. d3 {[%emt 0:00:45]} exf4 {[%emt 0:07:29]} 7. Bxf4 {[%emt 0:00:46]} Be6 {[%emt 0:00:11]} 8. Bb3 {[%emt 0:02:35]} Nd7 {[%emt 0:08:48]} 9. Ne2 {[%emt 0:13:47]} Bxb3 {[%emt 0:03:58]} 10. axb3 {[%emt 0:02:07]} Nde5 {[%emt 0:02:28]} 11. Ng3 {[%emt 0:05:05]} Bf6 {[%emt 0:03:14]} 12. c3 {[%emt 0:03:37]} Ng6 {[%emt 0:15:47]} 13. Be3 {[%emt 0:06:07]} b5 {[%emt 0:02:37]} 14. O-O {[%emt 0:02:51]} O-O {[%emt 0:03:34]} 15. Nh5 {[%emt 0:05:06]} Be7 {[%emt 0:06:06]} 16. Nd4 {[%emt 0:02:24]} Nxd4 {[%emt 0:01:39]} 17. Bxd4 {[%emt 0:00:20]} f6 {[%emt 0:01:34]} 18. Nf4 {[%emt 0:04:29]} Nxf4 {[%emt 0:01:11]} 19. Rxf4 {[%emt 0:00:16]} c5 {[%emt 0:00:15]} 20. Be3 {[%emt 0:00:23]} d5 {[%emt 0:00:28]} 21. Qf3 {[%emt 0:05:29]} d4 {[%emt 0:01:10]} 22. Bd2 {[%emt 0:00:51]} Bd6 {[%emt 0:00:48]} 23. Rg4 {[%emt 0:02:58]} Be5 {[%emt 0:00:39]} 24. c4 {[%emt 0:03:18]} bxc4 {[%emt 0:01:46]} 25. bxc4 {[%emt 0:00:46]} Qb8 {[%emt 0:00:30]} 26. Bh6 {[%emt 0:13:27]} Rf7 {[%emt 0:02:10]} 27. Rb1 {[%emt 0:07:14]} Bxh2+ {[%emt 0:00:39]} 28. Kh1 {[%emt 0:01:08]} Be5 {[%emt 0:00:25]} 29. Qf5 {[%emt 0:00:57]} Qb6 {[%emt 0:01:46]} 30. Qf2 {[%emt 0:01:52]} Qb3 {[%emt 0:02:17]} 31. Qd2 {[%emt 0:02:00]} a5 {[%emt 0:01:11]} 32. Ra1 {[%emt 0:00:42]} Qb6 {[%emt 0:02:19]} 33. Qc2 {[%emt 0:00:51]} f5 {[%emt 0:00:44]} 34. Rxg7+ {[%emt 0:01:59]} Bxg7 {[%emt 0:00:51]} 35. Bxg7 {[%emt 0:03:44]} Rxg7 {[%emt 0:00:29]} 36. exf5 {[%emt 0:00:28]} Qh6+ {[%emt 0:00:30]} 37. Kg1 {[%emt 0:00:03]} Qe3+ {[%emt 0:00:11]} 38. Kh1 {[%emt 0:00:35]} Rg5 {[%emt 0:00:07]} 39. Qd1 {[%emt 0:00:53]} Qf2 {[%emt 0:00:19]} 40. Qf3 {[%emt 0:01:09]} Qxf3 {[%emt 0:00:13]} 41. gxf3 {[%emt 0:00:06]} Rxf5 {[%emt 0:00:14]} 42. Kg2 {[%emt 0:00:06]} Re5 {[%emt 0:00:12]} 43. Kg3 {[%emt 0:02:38]} Re2 {[%emt 0:00:24]} 44. b3 {[%emt 0:00:31]} Rd2 {[%emt 0:00:18]} 45. Kg4 {[%emt 0:00:15]} Rxd3 {[%emt 0:00:09]} 46. Rb1 {[%emt 0:00:20]} Rc3 {[%emt 0:00:26]} 47. Kf4 {[%emt 0:00:26]} Re8 {[%emt 0:00:20]} 48. Ra1 {[%emt 0:00:18]} d3 {[%emt 0:00:14]} 49. Rxa5 {[%emt 0:00:06]} d2 {[%emt 0:00:06]} 50. Ra1 {[%emt 0:00:11]} Rc1 {[%emt 0:00:03]} 51. Ra2 {[%emt 0:00:31]} d1=Q {[%emt 0:00:10]} 52. Rg2+ {[%emt 0:00:04]} Kh8 {[%emt 0:00:09]} 53. Rg8+ {[%emt 0:00:15]} Rxg8 {[%emt 0:00:13]} 0-1